[Event "Early-Titled-Tuesday-Blitz-April-23-2024"]
[Site "Chess.com"]
[Date "2024.04.23"]
[Round "8"]
[White "waltereador"]
[Black "FischerKasparow"]
[Result "0-1"]
[WhiteElo "2310"]
[BlackElo "2124"]
[TimeControl "180+1"]
[EndTime "9:32:52 PDT"]
[Termination "FischerKasparow won by resignation"]

1. e4 {[%clk 0:02:50.1]} 1... c5 {[%clk 0:02:58.9]} 2. b4 {[%clk 0:02:48.5]}
2... cxb4 {[%clk 0:02:54.3]} 3. a3 {[%clk 0:02:48.2]} 3... bxa3 {[%clk
0:02:53.4]} 4. Bxa3 {[%clk 0:02:49.1]} 4... g6 {[%clk 0:02:51.2]} 5. d4 {[%clk
0:02:48.6]} 5... Bg7 {[%clk 0:02:50.9]} 6. Nf3 {[%clk 0:02:48.9]} 6... d6 {[%clk
0:02:50.2]} 7. Bc4 {[%clk 0:02:47.4]} 7... Nf6 {[%clk 0:02:46.3]} 8. Nc3 {[%clk
0:02:44.9]} 8... O-O {[%clk 0:02:44.4]} 9. h3 {[%clk 0:02:44.1]} 9... Nxe4
{[%clk 0:02:41.1]} 10. Nxe4 {[%clk 0:02:37]} 10... d5 {[%clk 0:02:40.9]} 11. Bd3
{[%clk 0:02:33.1]} 11... dxe4 {[%clk 0:02:35.6]} 12. Bxe4 {[%clk 0:02:33.3]}
12... Qa5+ {[%clk 0:02:24.5]} 13. Kf1 {[%clk 0:02:28.2]} 13... Qc7 {[%clk
0:02:17.4]} 14. g3 {[%clk 0:02:22.7]} 14... Rd8 {[%clk 0:02:16.2]} 15. Kg2
{[%clk 0:02:21.2]} 15... Nc6 {[%clk 0:02:16]} 16. c3 {[%clk 0:02:20.8]} 16... e6
{[%clk 0:02:06.9]} 17. h4 {[%clk 0:02:16]} 17... h5 {[%clk 0:02:05.5]} 18. Qe2
{[%clk 0:02:14.4]} 18... e5 {[%clk 0:01:59]} 19. Bxc6 {[%clk 0:02:12.1]} 19...
Qxc6 {[%clk 0:01:53.6]} 20. dxe5 {[%clk 0:02:11.1]} 20... Bg4 {[%clk 0:01:51.4]}
21. Rhe1 {[%clk 0:02:10.9]} 21... Qxc3 {[%clk 0:01:38]} 22. Bd6 {[%clk
0:02:08.2]} 22... a5 {[%clk 0:01:26.2]} 23. Qe3 {[%clk 0:02:07.5]} 23... Bxf3+
{[%clk 0:01:21.4]} 24. Qxf3 {[%clk 0:02:04.9]} 24... Qxf3+ {[%clk 0:01:21.1]}
25. Kxf3 {[%clk 0:02:05.8]} 25... b5 {[%clk 0:01:21]} 26. Reb1 {[%clk
0:02:03.3]} 26... b4 {[%clk 0:01:19.1]} 27. Ra4 {[%clk 0:02:03.5]} 27... Bf8
{[%clk 0:01:15.3]} 28. Ke4 {[%clk 0:01:58.5]} 28... Bxd6 {[%clk 0:01:13.9]} 29.
exd6 {[%clk 0:01:58.8]} 29... Rxd6 {[%clk 0:01:13.9]} 30. Kf3 {[%clk 0:01:47.6]}
30... Rd3+ {[%clk 0:01:09.4]} 31. Kg2 {[%clk 0:01:47.5]} 31... b3 {[%clk
0:01:04.8]} 32. Rba1 {[%clk 0:01:41.6]} 32... b2 {[%clk 0:01:03.2]} 33. Rb1
{[%clk 0:01:40.2]} 33... Rb3 {[%clk 0:01:03.1]} 34. Ra2 {[%clk 0:01:40.3]} 34...
a4 {[%clk 0:00:58.3]} 35. Raxb2 {[%clk 0:01:39.5]} 35... Rxb2 {[%clk 0:00:56.9]}
36. Rxb2 {[%clk 0:01:39.8]} 36... a3 {[%clk 0:00:57.2]} 37. Ra2 {[%clk
0:01:40.4]} 37... Kg7 {[%clk 0:00:57.2]} 38. Kf3 {[%clk 0:01:40]} 38... Kf6
{[%clk 0:00:57.3]} 39. Kf4 {[%clk 0:01:40.5]} 39... Ke6 {[%clk 0:00:57.1]} 40.
Ke4 {[%clk 0:01:39.3]} 40... Kd6 {[%clk 0:00:56.9]} 41. Kd4 {[%clk 0:01:39.6]}
41... Ra4+ {[%clk 0:00:53.9]} 42. Kc3 {[%clk 0:01:39.4]} 42... Kc5 {[%clk
0:00:46.5]} 43. Kb3 {[%clk 0:01:38.4]} 43... Ra8 {[%clk 0:00:45]} 44. Kc3 {[%clk
0:01:31.7]} 44... Kd5 {[%clk 0:00:43.7]} 45. Kd3 {[%clk 0:01:31.7]} 45... Ke5
{[%clk 0:00:43.9]} 46. Ke3 {[%clk 0:01:32]} 46... Ra4 {[%clk 0:00:44]} 47. f3
{[%clk 0:01:31.1]} 47... Kd5 {[%clk 0:00:43.7]} 48. Kd3 {[%clk 0:01:31.2]} 48...
Ra8 {[%clk 0:00:42]} 49. Kc3 {[%clk 0:01:24.9]} 49... Ke5 {[%clk 0:00:41.6]} 50.
Kd3 {[%clk 0:01:25]} 50... Kf5 {[%clk 0:00:41.2]} 51. Ke3 {[%clk 0:01:25.3]}
51... Ra4 {[%clk 0:00:39.1]} 52. Kd3 {[%clk 0:01:24.7]} 52... g5 {[%clk
0:00:37.7]} 53. hxg5 {[%clk 0:01:23.2]} 53... Kxg5 {[%clk 0:00:36.4]} 54. Ke3
{[%clk 0:01:23.5]} 54... h4 {[%clk 0:00:36.1]} 55. gxh4+ {[%clk 0:01:23.4]}
55... Kxh4 {[%clk 0:00:36.2]} 56. Kf2 {[%clk 0:01:10.2]} 56... f5 {[%clk
0:00:34.4]} 57. Kg2 {[%clk 0:01:04.4]} 57... f4 {[%clk 0:00:34.4]} 58. Kf2
{[%clk 0:01:03.5]} 58... Kh3 {[%clk 0:00:33.7]} 59. Ra1 {[%clk 0:01:02.4]} 59...
Kh2 {[%clk 0:00:32.6]} 60. Ra2 {[%clk 0:00:59.9]} 60... Kh3 {[%clk 0:00:31.5]}
61. Ra1 {[%clk 0:00:59.4]} 61... Kh4 {[%clk 0:00:28.8]} 62. Rh1+ {[%clk
0:00:57.6]} 62... Kg5 {[%clk 0:00:28.4]} 63. Ra1 {[%clk 0:00:58.5]} 63... a2
{[%clk 0:00:27.6]} 64. Ke2 {[%clk 0:00:58.7]} 64... Kh4 {[%clk 0:00:27.5]} 65.
Kf2 {[%clk 0:00:58.3]} 65... Ra3 {[%clk 0:00:25]} 66. Rh1+ {[%clk 0:00:56.8]}
66... Kg5 {[%clk 0:00:22.8]} 67. Ra1 {[%clk 0:00:56.2]} 67... Kf5 {[%clk
0:00:23]} 68. Ke2 {[%clk 0:00:56.6]} 68... Ke5 {[%clk 0:00:23.3]} 69. Kf2 {[%clk
0:00:53.3]} 69... Kd4 {[%clk 0:00:23.4]} 70. Ke2 {[%clk 0:00:48.9]} 70... Kc3
{[%clk 0:00:23.5]} 71. Rc1+ {[%clk 0:00:37.5]} 71... Kb2 {[%clk 0:00:23.4]} 72.
Rd1 {[%clk 0:00:37.7]} 72... a1=Q {[%clk 0:00:23.5]} 73. Rxa1 {[%clk 0:00:37.6]}
73... Kxa1 {[%clk 0:00:23.4]} 74. Kd2 {[%clk 0:00:37.6]} 74... Rxf3 {[%clk
0:00:23.2]} 75. Ke2 {[%clk 0:00:38]} 75... Rh3 {[%clk 0:00:23]} 0-1

[Event "Early-Titled-Tuesday-Blitz-April-23-2024"]
[Site "Chess.com"]
[Date "2024.04.23"]
[Round "8"]
[White "jinxy2009"]
[Black "GlennTipton"]
[Result "0-1"]
[WhiteElo "2314"]
[BlackElo "2500"]
[TimeControl "180+1"]
[EndTime "9:32:53 PDT"]
[Termination "GlennTipton won on time"]

1. e4 {[%clk 0:02:59.7]} 1... c5 {[%clk 0:02:59.3]} 2. Nf3 {[%clk 0:02:59.8]}
2... d6 {[%clk 0:02:59.2]} 3. d4 {[%clk 0:03:00.5]} 3... cxd4 {[%clk 0:02:58.8]}
4. Nxd4 {[%clk 0:03:01.4]} 4... Nf6 {[%clk 0:02:58.7]} 5. Nc3 {[%clk 0:03:02.1]}
5... g6 {[%clk 0:02:56.4]} 6. Be3 {[%clk 0:03:00.8]} 6... Bg7 {[%clk 0:02:29.7]}
7. f3 {[%clk 0:02:59.8]} 7... Nc6 {[%clk 0:02:30]} 8. Qd2 {[%clk 0:02:57.1]}
8... O-O {[%clk 0:02:30.1]} 9. Bc4 {[%clk 0:02:57.2]} 9... Bd7 {[%clk
0:02:29.7]} 10. O-O-O {[%clk 0:02:56.8]} 10... Rc8 {[%clk 0:02:29.5]} 11. Bb3
{[%clk 0:02:56.7]} 11... Ne5 {[%clk 0:02:29.1]} 12. Kb1 {[%clk 0:02:56.7]} 12...
b5 {[%clk 0:02:28.1]} 13. Ndxb5 {[%clk 0:02:42.9]} 13... Qa5 {[%clk 0:02:05]}
14. Nd4 {[%clk 0:02:28.8]} 14... Qa6 {[%clk 0:01:45.1]} 15. h4 {[%clk
0:02:21.5]} 15... h5 {[%clk 0:01:32.2]} 16. g4 {[%clk 0:02:18.4]} 16... Rxc3
{[%clk 0:01:26]} 17. Qxc3 {[%clk 0:02:10.6]} 17... hxg4 {[%clk 0:01:21.2]} 18.
Qd2 {[%clk 0:01:33.1]} 18... Nc4 {[%clk 0:01:01.2]} 19. Bxc4 {[%clk 0:01:29.7]}
19... Qxc4 {[%clk 0:01:01]} 20. h5 {[%clk 0:01:20.7]} 20... Nxh5 {[%clk
0:00:41.7]} 21. Bh6 {[%clk 0:01:19.3]} 21... Bxd4 {[%clk 0:00:16.9]} 22. Bxf8
{[%clk 0:00:36.7]} 22... Kxf8 {[%clk 0:00:17.8]} 23. Qxd4 {[%clk 0:00:36]} 23...
Qxd4 {[%clk 0:00:18.7]} 24. Rxd4 {[%clk 0:00:36.2]} 24... gxf3 {[%clk
0:00:19.6]} 25. Rf1 {[%clk 0:00:28.3]} 25... Bg4 {[%clk 0:00:18.7]} 26. Rd3
{[%clk 0:00:18.7]} 26... Nf6 {[%clk 0:00:17.1]} 27. Rfxf3 {[%clk 0:00:18.1]}
27... Bxf3 {[%clk 0:00:16.9]} 28. Rxf3 {[%clk 0:00:19]} 28... Nxe4 {[%clk
0:00:17.4]} 29. Ra3 {[%clk 0:00:19.8]} 29... g5 {[%clk 0:00:17.8]} 30. Rxa7
{[%clk 0:00:19.8]} 30... g4 {[%clk 0:00:18.2]} 31. Ra4 {[%clk 0:00:07.6]} 31...
f5 {[%clk 0:00:18.2]} 32. Rd4 {[%clk 0:00:08.1]} 32... g3 {[%clk 0:00:17.8]} 33.
Rd1 {[%clk 0:00:08.3]} 33... f4 {[%clk 0:00:16.4]} 34. a4 {[%clk 0:00:07.3]}
34... f3 {[%clk 0:00:16.3]} 35. a5 {[%clk 0:00:07.9]} 35... f2 {[%clk
0:00:10.7]} 36. a6 {[%clk 0:00:07.3]} 36... g2 {[%clk 0:00:10.6]} 37. a7 {[%clk
0:00:07.6]} 37... f1=Q {[%clk 0:00:11.4]} 38. a8=Q+ {[%clk 0:00:07.8]} 38... Kg7
{[%clk 0:00:10.9]} 39. Rxf1 {[%clk 0:00:02.6]} 39... gxf1=Q+ {[%clk 0:00:11.2]}
40. Ka2 {[%clk 0:00:03.1]} 40... Qc4+ {[%clk 0:00:11.3]} 41. Kb1 {[%clk
0:00:02.6]} 41... Nd2+ {[%clk 0:00:11]} 42. Kc1 {[%clk 0:00:03]} 42... Nb3+
{[%clk 0:00:11.2]} 43. Kb1 {[%clk 0:00:03.6]} 43... Nd4 {[%clk 0:00:10.7]} 44.
Qe4 {[%clk 0:00:02.9]} 44... Qf1+ {[%clk 0:00:09.6]} 45. Ka2 {[%clk 0:00:02.9]}
45... Qa6+ {[%clk 0:00:09.5]} 46. Kb1 {[%clk 0:00:03.2]} 46... Qf1+ {[%clk
0:00:09.5]} 47. Ka2 {[%clk 0:00:03.6]} 47... Qf6 {[%clk 0:00:10.1]} 48. Qg4+
{[%clk 0:00:03.3]} 48... Kf7 {[%clk 0:00:10.3]} 49. Qh5+ {[%clk 0:00:03]} 49...
Kf8 {[%clk 0:00:10.8]} 50. Qd1 {[%clk 0:00:02.5]} 50... Qe6+ {[%clk 0:00:10.8]}
51. b3 {[%clk 0:00:02.8]} 51... Qe4 {[%clk 0:00:10.6]} 52. Qf1+ {[%clk
0:00:02.9]} 52... Ke8 {[%clk 0:00:10.6]} 53. Qb5+ {[%clk 0:00:02.1]} 53... Nxb5
{[%clk 0:00:10.6]} 0-1

[Event "Early-Titled-Tuesday-Blitz-April-23-2024"]
[Site "Chess.com"]
[Date "2024.04.23"]
[Round "8"]
[White "StelaSfw"]
[Black "SmirnovTimofey2000"]
[Result "0-1"]
[WhiteElo "1662"]
[BlackElo "1989"]
[TimeControl "180+1"]
[EndTime "9:32:55 PDT"]
[Termination "SmirnovTimofey2000 won by checkmate"]

1. Nf3 {[%clk 0:02:58.8]} 1... d5 {[%clk 0:02:58.8]} 2. g3 {[%clk 0:02:58.7]}
2... Bf5 {[%clk 0:02:58.2]} 3. Bg2 {[%clk 0:02:58.4]} 3... e6 {[%clk 0:02:58.4]}
4. O-O {[%clk 0:02:58.7]} 4... Nf6 {[%clk 0:02:58.1]} 5. b3 {[%clk 0:02:58.8]}
5... h6 {[%clk 0:02:57.5]} 6. Bb2 {[%clk 0:02:59]} 6... Be7 {[%clk 0:02:57.7]}
7. d3 {[%clk 0:02:58.4]} 7... O-O {[%clk 0:02:56]} 8. Re1 {[%clk 0:02:57.9]}
8... c6 {[%clk 0:02:49.1]} 9. Nbd2 {[%clk 0:02:57.9]} 9... a5 {[%clk 0:02:41.4]}
10. e4 {[%clk 0:02:54.1]} 10... Bh7 {[%clk 0:02:39.1]} 11. e5 {[%clk 0:02:52.5]}
11... Nfd7 {[%clk 0:02:38.6]} 12. d4 {[%clk 0:02:52.3]} 12... c5 {[%clk
0:02:35.9]} 13. dxc5 {[%clk 0:02:51.8]} 13... Nxc5 {[%clk 0:02:34.6]} 14. Rc1
{[%clk 0:02:48.6]} 14... Nc6 {[%clk 0:02:25.5]} 15. Qe2 {[%clk 0:02:44.3]} 15...
Nb4 {[%clk 0:02:15.5]} 16. Qb5 {[%clk 0:02:14.4]} 16... Nxc2 {[%clk 0:02:07.7]}
17. Re2 {[%clk 0:01:57.9]} 17... Bd3 {[%clk 0:01:52.2]} 18. Nc4 {[%clk
0:01:23.1]} 18... Bxe2 {[%clk 0:01:29.6]} 19. Rxc2 {[%clk 0:01:21.6]} 19... Bxf3
{[%clk 0:01:27.7]} 20. Bxf3 {[%clk 0:01:21.2]} 20... dxc4 {[%clk 0:01:27.8]} 21.
Qxc4 {[%clk 0:01:20.5]} 21... Rc8 {[%clk 0:01:22.5]} 22. Ba3 {[%clk 0:01:20.3]}
22... b6 {[%clk 0:00:57.4]} 23. Qb5 {[%clk 0:01:13.6]} 23... Qd7 {[%clk
0:00:52.6]} 24. Qe2 {[%clk 0:01:09.1]} 24... Qd3 {[%clk 0:00:51]} 25. Kg2 {[%clk
0:00:11.2]} 25... Qxe2 {[%clk 0:00:50.8]} 26. Bxe2 {[%clk 0:00:12.1]} 26... Rfd8
{[%clk 0:00:50.2]} 27. Kf1 {[%clk 0:00:11.4]} 27... Rd7 {[%clk 0:00:46.6]} 28.
f4 {[%clk 0:00:11.2]} 28... Rcd8 {[%clk 0:00:46.6]} 29. Ke1 {[%clk 0:00:11]}
29... Rc8 {[%clk 0:00:39.8]} 30. Bb5 {[%clk 0:00:08.4]} 30... Rdc7 {[%clk
0:00:39.5]} 31. Bxc5 {[%clk 0:00:07.2]} 31... Rxc5 {[%clk 0:00:38.7]} 32. Rxc5
{[%clk 0:00:07]} 32... Rxc5 {[%clk 0:00:38.9]} 33. Bc4 {[%clk 0:00:07.9]} 33...
b5 {[%clk 0:00:38.1]} 34. Bd3 {[%clk 0:00:07.9]} 34... a4 {[%clk 0:00:37.4]} 35.
Kd2 {[%clk 0:00:08.8]} 35... axb3 {[%clk 0:00:36.6]} 36. axb3 {[%clk 0:00:09.7]}
36... Rd5 {[%clk 0:00:36.2]} 37. Kc3 {[%clk 0:00:09.8]} 37... b4+ {[%clk
0:00:33.7]} 38. Kc4 {[%clk 0:00:09.3]} 38... Rd8 {[%clk 0:00:25.2]} 39. Be4
{[%clk 0:00:09]} 39... Rc8+ {[%clk 0:00:22.9]} 40. Kd3 {[%clk 0:00:08.9]} 40...
Rc3+ {[%clk 0:00:22.5]} 41. Kd2 {[%clk 0:00:09.5]} 41... Rxb3 {[%clk 0:00:22.2]}
42. Bc2 {[%clk 0:00:10.4]} 42... Rb2 {[%clk 0:00:21.9]} 43. Kc1 {[%clk
0:00:10.9]} 43... Ra2 {[%clk 0:00:18.9]} 44. Kb1 {[%clk 0:00:11.4]} 44... Rxc2
{[%clk 0:00:18.9]} 45. Kxc2 {[%clk 0:00:11.5]} 45... f6 {[%clk 0:00:19]} 46. Kb3
{[%clk 0:00:12.4]} 46... fxe5 {[%clk 0:00:18.6]} 47. fxe5 {[%clk 0:00:13.3]}
47... Kf8 {[%clk 0:00:18.6]} 48. h3 {[%clk 0:00:12.9]} 48... g5 {[%clk
0:00:18.2]} 49. g4 {[%clk 0:00:13.8]} 49... Ke8 {[%clk 0:00:17.6]} 50. Kc4
{[%clk 0:00:14.7]} 50... Kd7 {[%clk 0:00:17.9]} 51. Kb3 {[%clk 0:00:15.6]} 51...
Kc6 {[%clk 0:00:18.2]} 52. Kc4 {[%clk 0:00:16.5]} 52... Kb6 {[%clk 0:00:17.7]}
53. Kb3 {[%clk 0:00:16.2]} 53... Kb5 {[%clk 0:00:18]} 54. Kc2 {[%clk 0:00:16.5]}
54... Kc4 {[%clk 0:00:18.2]} 55. Kb2 {[%clk 0:00:16.6]} 55... b3 {[%clk
0:00:18.4]} 56. Kb1 {[%clk 0:00:16.8]} 56... Kc3 {[%clk 0:00:18]} 57. Kc1 {[%clk
0:00:16.9]} 57... Ba3+ {[%clk 0:00:18]} 58. Kb1 {[%clk 0:00:17.1]} 58... Bc5
{[%clk 0:00:18.4]} 59. h4 {[%clk 0:00:16.2]} 59... gxh4 {[%clk 0:00:17.8]} 60.
g5 {[%clk 0:00:16.2]} 60... hxg5 {[%clk 0:00:17.9]} 61. Ka1 {[%clk 0:00:16]}
61... h3 {[%clk 0:00:18]} 62. Kb1 {[%clk 0:00:16.8]} 62... h2 {[%clk 0:00:18.3]}
63. Kc1 {[%clk 0:00:17.4]} 63... h1=Q# {[%clk 0:00:17.8]} 0-1

[Event "Early-Titled-Tuesday-Blitz-April-23-2024"]
[Site "Chess.com"]
[Date "2024.04.23"]
[Round "8"]
[White "Zhigalko_Sergei"]
[Black "Evgeny81"]
[Result "1-0"]
[WhiteElo "2936"]
[BlackElo "2785"]
[TimeControl "180+1"]
[EndTime "9:32:56 PDT"]
[Termination "Zhigalko_Sergei won on time"]

1. e4 {[%clk 0:03:00.9]} 1... e5 {[%clk 0:02:59.7]} 2. Nf3 {[%clk 0:03:00.8]}
2... Nc6 {[%clk 0:03:00]} 3. Bc4 {[%clk 0:02:59.9]} 3... Nf6 {[%clk 0:02:59.5]}
4. d3 {[%clk 0:03:00.3]} 4... Be7 {[%clk 0:02:59.6]} 5. O-O {[%clk 0:03:00.5]}
5... d6 {[%clk 0:03:00]} 6. c3 {[%clk 0:03:00.5]} 6... O-O {[%clk 0:02:59.9]} 7.
Nbd2 {[%clk 0:03:01]} 7... Na5 {[%clk 0:02:59.8]} 8. Bb5 {[%clk 0:03:01.1]} 8...
a6 {[%clk 0:03:00.4]} 9. Ba4 {[%clk 0:03:01.6]} 9... b5 {[%clk 0:03:01.1]} 10.
Bc2 {[%clk 0:03:02.3]} 10... c5 {[%clk 0:03:01.8]} 11. Re1 {[%clk 0:03:02.9]}
11... Nc6 {[%clk 0:03:01.2]} 12. Nf1 {[%clk 0:03:00.8]} 12... Re8 {[%clk
0:03:01.1]} 13. h3 {[%clk 0:03:00]} 13... Bf8 {[%clk 0:03:00.2]} 14. Bg5 {[%clk
0:02:57.4]} 14... g6 {[%clk 0:02:59.7]} 15. Ne3 {[%clk 0:02:57]} 15... Bg7
{[%clk 0:03:00.1]} 16. Bb3 {[%clk 0:02:48.1]} 16... h6 {[%clk 0:02:57.7]} 17.
Bxf6 {[%clk 0:02:42]} 17... Bxf6 {[%clk 0:02:54.7]} 18. a4 {[%clk 0:02:42.9]}
18... Rb8 {[%clk 0:02:53.8]} 19. axb5 {[%clk 0:02:39.1]} 19... axb5 {[%clk
0:02:53.6]} 20. Qd2 {[%clk 0:02:22.8]} 20... Bg7 {[%clk 0:02:51.4]} 21. Ra2
{[%clk 0:02:10.1]} 21... b4 {[%clk 0:02:43.1]} 22. Bd5 {[%clk 0:02:03.4]} 22...
Bd7 {[%clk 0:02:36.9]} 23. Rea1 {[%clk 0:02:01.1]} 23... Rf8 {[%clk 0:02:18.6]}
24. Ra6 {[%clk 0:01:57.1]} 24... Qc7 {[%clk 0:02:16.5]} 25. Bc4 {[%clk
0:01:38.9]} 25... Kh7 {[%clk 0:02:11.1]} 26. Nd5 {[%clk 0:01:37.2]} 26... Qd8
{[%clk 0:02:11.2]} 27. Qd1 {[%clk 0:01:06.5]} 27... bxc3 {[%clk 0:02:08.1]} 28.
bxc3 {[%clk 0:01:06.6]} 28... Be8 {[%clk 0:01:51.5]} 29. R1a2 {[%clk 0:00:56.7]}
29... Ne7 {[%clk 0:01:47.9]} 30. Nxe7 {[%clk 0:00:44.4]} 30... Qxe7 {[%clk
0:01:47.9]} 31. Nd2 {[%clk 0:00:44.8]} 31... f5 {[%clk 0:01:41]} 32. Bd5 {[%clk
0:00:41]} 32... Qf6 {[%clk 0:01:32.2]} 33. Nc4 {[%clk 0:00:39.8]} 33... Rd8
{[%clk 0:01:30.6]} 34. Ra7 {[%clk 0:00:37.1]} 34... Rd7 {[%clk 0:01:17.7]} 35.
Qe2 {[%clk 0:00:25]} 35... fxe4 {[%clk 0:01:11.7]} 36. dxe4 {[%clk 0:00:24.4]}
36... Rxa7 {[%clk 0:01:02.7]} 37. Rxa7 {[%clk 0:00:24]} 37... Bb5 {[%clk
0:01:03.3]} 38. Qd2 {[%clk 0:00:18.2]} 38... Rb8 {[%clk 0:00:44.8]} 39. Nxd6
{[%clk 0:00:16.8]} 39... Be8 {[%clk 0:00:28.7]} 40. Qd1 {[%clk 0:00:14.6]} 40...
Rd8 {[%clk 0:00:23.3]} 41. Nxe8 {[%clk 0:00:09.6]} 41... Rxe8 {[%clk 0:00:24.2]}
42. Qe2 {[%clk 0:00:05.7]} 42... Rf8 {[%clk 0:00:23.3]} 43. Rb7 {[%clk
0:00:02.9]} 43... h5 {[%clk 0:00:22.8]} 44. g3 {[%clk 0:00:03.1]} 44... Kh8
{[%clk 0:00:22]} 45. h4 {[%clk 0:00:03.1]} 45... Bh6 {[%clk 0:00:14.5]} 46. Kg2
{[%clk 0:00:03.1]} 46... Bg7 {[%clk 0:00:14.7]} 47. Rc7 {[%clk 0:00:03]} 47...
Kh7 {[%clk 0:00:05.5]} 48. Rxc5 {[%clk 0:00:02.9]} 48... Qe7 {[%clk 0:00:04.3]}
49. Rc6 {[%clk 0:00:03.1]} 49... Rf6 {[%clk 0:00:04.5]} 50. Rc8 {[%clk
0:00:02.2]} 50... Qa7 {[%clk 0:00:03]} 51. Ra8 {[%clk 0:00:02.5]} 51... Qb6
{[%clk 0:00:02.7]} 52. Ra2 {[%clk 0:00:02.5]} 52... Rf8 {[%clk 0:00:02.8]} 53.
Qb2 {[%clk 0:00:02.8]} 53... Qc5 {[%clk 0:00:01.7]} 54. Qd2 {[%clk 0:00:03.1]}
54... Qe7 {[%clk 0:00:01.5]} 55. Ra6 {[%clk 0:00:02.5]} 1-0

[Event "Early-Titled-Tuesday-Blitz-April-23-2024"]
[Site "Chess.com"]
[Date "2024.04.23"]
[Round "8"]
[White "Larkin-Vladislav"]
[Black "jeetjain"]
[Result "1-0"]
[WhiteElo "2869"]
[BlackElo "2609"]
[TimeControl "180+1"]
[EndTime "9:32:57 PDT"]
[Termination "Larkin-Vladislav won on time"]

1. e4 {[%clk 0:02:59.1]} 1... c6 {[%clk 0:02:56.3]} 2. d4 {[%clk 0:02:58.9]}
2... g6 {[%clk 0:02:55.4]} 3. Nf3 {[%clk 0:02:33.9]} 3... d5 {[%clk 0:02:52.4]}
4. Nbd2 {[%clk 0:02:33.7]} 4... Bg7 {[%clk 0:02:51.6]} 5. c3 {[%clk 0:02:33.1]}
5... dxe4 {[%clk 0:02:49.8]} 6. Nxe4 {[%clk 0:02:33.2]} 6... Nd7 {[%clk
0:02:49.9]} 7. Bc4 {[%clk 0:02:33]} 7... e6 {[%clk 0:02:40.8]} 8. Nd6+ {[%clk
0:02:31.1]} 8... Ke7 {[%clk 0:02:35.4]} 9. Ne4 {[%clk 0:02:27.8]} 9... Ngf6
{[%clk 0:02:30.6]} 10. Nxf6 {[%clk 0:02:16.7]} 10... Nxf6 {[%clk 0:02:28.3]} 11.
h4 {[%clk 0:02:15.6]} 11... h6 {[%clk 0:02:23.3]} 12. a4 {[%clk 0:02:10.8]}
12... Re8 {[%clk 0:02:20.7]} 13. a5 {[%clk 0:01:47.2]} 13... Kf8 {[%clk
0:02:17.3]} 14. Ne5 {[%clk 0:01:43.2]} 14... Nd5 {[%clk 0:02:06.6]} 15. Qf3
{[%clk 0:01:34.5]} 15... Qf6 {[%clk 0:02:00.9]} 16. Qg3 {[%clk 0:01:31.1]} 16...
Kg8 {[%clk 0:01:57]} 17. Bd3 {[%clk 0:01:23.9]} 17... Qd8 {[%clk 0:01:47.4]} 18.
Nxf7 {[%clk 0:01:04.5]} 18... Kxf7 {[%clk 0:01:44]} 19. Qxg6+ {[%clk 0:01:05]}
19... Kf8 {[%clk 0:01:42.8]} 20. Bxh6 {[%clk 0:00:54.6]} 20... Qf6 {[%clk
0:01:42.3]} 21. Bxg7+ {[%clk 0:00:50.5]} 21... Qxg7 {[%clk 0:01:41.8]} 22. Qe4
{[%clk 0:00:50.7]} 22... e5 {[%clk 0:01:39.8]} 23. O-O-O {[%clk 0:00:50.5]}
23... exd4 {[%clk 0:01:39.1]} 24. Qf3+ {[%clk 0:00:47.9]} 24... Qf6 {[%clk
0:01:35.3]} 25. Qxf6+ {[%clk 0:00:40]} 25... Nxf6 {[%clk 0:01:36.2]} 26. cxd4
{[%clk 0:00:40.9]} 26... Be6 {[%clk 0:01:30.4]} 27. f3 {[%clk 0:00:38.9]} 27...
Rad8 {[%clk 0:01:29.5]} 28. Bg6 {[%clk 0:00:38.3]} 28... Re7 {[%clk 0:01:29.6]}
29. h5 {[%clk 0:00:38.9]} 29... Kg7 {[%clk 0:01:27.2]} 30. Bc2 {[%clk
0:00:37.4]} 30... Red7 {[%clk 0:01:19.2]} 31. g4 {[%clk 0:00:37.1]} 31... Rxd4
{[%clk 0:01:17.4]} 32. h6+ {[%clk 0:00:37.6]} 32... Kh8 {[%clk 0:01:15.6]} 33.
Rxd4 {[%clk 0:00:38.5]} 33... Rxd4 {[%clk 0:01:15.3]} 34. g5 {[%clk 0:00:39.4]}
34... Ne8 {[%clk 0:01:11.4]} 35. g6 {[%clk 0:00:39.5]} 35... Rf4 {[%clk
0:00:59.6]} 36. g7+ {[%clk 0:00:39.3]} 36... Nxg7 {[%clk 0:00:57.2]} 37. hxg7+
{[%clk 0:00:40.2]} 37... Kxg7 {[%clk 0:00:58.1]} 38. Rh7+ {[%clk 0:00:40.6]}
38... Kf6 {[%clk 0:00:18.7]} 39. Rxb7 {[%clk 0:00:41.5]} 39... a6 {[%clk
0:00:15.6]} 40. Be4 {[%clk 0:00:40.3]} 40... Bd5 {[%clk 0:00:10.5]} 41. Rb6
{[%clk 0:00:20.1]} 41... Ke5 {[%clk 0:00:10.5]} 42. Rxa6 {[%clk 0:00:18.5]}
42... Bxe4 {[%clk 0:00:09.2]} 43. fxe4 {[%clk 0:00:19.4]} 43... Kd6 {[%clk
0:00:09.4]} 44. e5+ {[%clk 0:00:19.2]} 44... Kd5 {[%clk 0:00:08.4]} 45. Rb6
{[%clk 0:00:17.9]} 45... Re4 {[%clk 0:00:06.9]} 46. b4 {[%clk 0:00:17.6]} 46...
Rxe5 {[%clk 0:00:07]} 47. Kc2 {[%clk 0:00:17.5]} 47... Re7 {[%clk 0:00:05.8]}
48. Rb8 {[%clk 0:00:15.5]} 48... Ra7 {[%clk 0:00:05.7]} 49. Kc3 {[%clk
0:00:14.8]} 49... c5 {[%clk 0:00:06]} 50. Rd8+ {[%clk 0:00:12.9]} 50... Ke6
{[%clk 0:00:05.6]} 51. b5 {[%clk 0:00:09]} 51... Rxa5 {[%clk 0:00:05.4]} 52. Kc4
{[%clk 0:00:09.6]} 52... Ke7 {[%clk 0:00:04.6]} 53. Rd1 {[%clk 0:00:09.4]} 1-0